bitfinex-derivatives/quotes_ETHF0:USTF0_20251204
["timestamp","ask_amount","ask_price","bid_price","bid_amount"]
[1764875999107,3.2115649,3078.5,3078.4,0.16237]
[1764875999803,3.2115649,3078.5,3077.7,3.3880165]
[1764876000309,3.2078,3078.1,3077.7,3.3880165]
[1764876000610,3.2078,3078.1,3077.1,3.99457477]
[1764876000818,3.2078,3077.9,3077.6,3.89494776]
[1764876001003,0.0037649,3078.5,3078.4,0.16237]
[1764876001307,1.65479383,3080.4,3078.4,0.16237]
[1764876001308,3.2078,3080.0,3078.9,3.9916]
[1764876001507,3.2078,3080.1,3079.6,3.2078]
[1764876001707,3.2078,3080.1,3079.0,11.77947168]
[1764876001910,3.2078,3080.1,3079.9,0.16229]
[1764876002106,3.21130119,3080.1,3079.9,0.00367182]
[1764876002502,0.00350119,3080.1,3080.0,0.16229]
[1764876002706,3.2078,3080.6,3080.4,0.16226]
[1764876003013,3.2078,3080.6,3080.5,0.16226]
[1764876003709,3.2106614,3080.6,3080.5,0.16226]
[1764876004210,3.2106614,3080.6,3080.0,4.23620632]
[1764876004411,3.2078,3080.1,3080.0,0.16229]
[1764876004909,3.2106614,3080.6,3080.5,0.16226]
[1764876005306,3.2106614,3080.6,3080.5,6.16226]
[1764876005505,3.2078,3081.5,3080.7,3.8616]
[1764876005712,3.2078,3081.9,3081.2,0.16222]
[1764876005906,3.2078,3081.9,3080.8,3.18968019]
[1764876006107,3.2078,3081.3,3080.4,0.16227]
[1764876006311,3.2078,3081.7,3080.8,3.2078]
[1764876006508,0.00487393,3081.6,3081.5,0.16221]
[1764876006813,3.2078,3082.4,3081.9,0.16219]
[1764876007107,3.2078,3082.4,3081.6,0.1622]
[1764876007310,3.2078,3083.0,3082.2,3.89494776]
[1764876007510,3.2078,3083.0,3081.7,10.9834961]
[1764876007719,3.2078,3081.8,3081.7,0.0038013]
[1764876008610,3.2078,3081.8,3080.9,0.00487393]
[1764876008811,0.16217,3082.3,3080.9,0.00487393]
[1764876008812,3.2078,3081.0,3080.9,0.00487393]
[1764876009714,3.2078,3081.1,3080.9,4.32132699]
[1764876009916,3.2078,3081.1,3080.9,0.17131368]
[1764876010121,3.2078,3081.5,3081.4,0.16221]
[1764876010617,3.2078,3081.5,3080.9,4.06626144]
[1764876010912,3.2078,3081.5,3080.9,0.17131368]
[1764876011416,3.2078,3081.0,3080.9,0.00907368]
[1764876012114,3.2078,3081.8,3081.3,0.16222]
[1764876012424,3.2078,3081.4,3079.8,3.2078]
[1764876012614,4.0326,3081.6,3079.8,3.2078]
[1764876012615,3.2078,3080.4,3080.1,0.16228]
[1764876012821,3.2078,3080.8,3080.3,0.16227]
[1764876013024,3.2078,3080.8,3080.4,0.16226]
[1764876013317,4.0326,3081.6,3080.7,0.16225]
[1764876013511,0.00240682,3080.8,3080.7,0.16225]
[1764876013923,3.2078,3081.2,3081.1,0.16223]
[1764876014124,3.2078,3082.2,3081.1,7.10274776]
[1764876014324,3.2078,3082.2,3081.7,0.1622]
[1764876014809,3.266,3083.3,3081.1,4.27890578]
[1764876014810,3.2078,3081.8,3081.1,4.27890578]
[1764876015119,3.2159409,3081.8,3081.3,0.16222]
[1764876015518,3.2159409,3081.8,3081.1,0.00486594]
[1764876016115,3.8165,3081.6,3081.1,0.00486594]
[1764876016315,3.2078,3081.4,3081.1,0.00486594]
[1764876017218,40.8,3081.7,3081.1,0.00486594]
[1764876017518,40.8,3081.7,3080.6,3.2078]
[1764876017519,2.0163,3081.6,3080.6,3.2078]
[1764876017722,0.16222,3081.3,3080.6,3.2078]
[1764876018026,0.16222,3081.3,3078.1,11.681]
[1764876018027,3.2078,3080.7,3079.5,3.2078]
[1764876018216,3.2078,3079.8,3079.0,3.37014]
[1764876018412,3.2078,3079.8,3078.6,3.2078]
[1764876018720,7.2404,3079.2,3078.4,0.16237]
[1764876018913,4.03500239,3079.2,3078.9,0.00486594]
[1764876019116,3.2078,3079.0,3078.9,0.00486594]
[1764876019516,0.00240239,3079.2,3078.9,0.16720594]
[1764876019718,0.00240239,3079.2,3079.0,0.16234]
[1764876020319,16.9268,3079.1,3078.4,0.00288561]
[1764876020527,3.2078,3078.5,3078.4,0.00288561]
[1764876021025,3.2078,3078.7,3078.4,0.00288561]
[1764876021424,4.0326,3078.9,3078.4,0.00288561]
[1764876021719,3.2078,3078.6,3078.4,0.00288561]
[1764876023316,3.2078,3078.6,3078.2,0.00486594]
[1764876023317,2.6324,3076.2,3075.9,3.2078]
[1764876023519,3.2078,3076.0,3074.8,3.3078]
[1764876023730,4.0326,3075.3,3074.0,3.2078]
[1764876024021,3.2078,3074.8,3074.0,0.1626]
[1764876024218,0.00419429,3074.8,3074.0,0.16524301]
[1764876024424,0.0048744,3074.7,3074.4,0.16258]
[1764876024623,0.0048744,3074.7,3074.5,0.16258]
[1764876024824,0.0048744,3074.7,3074.5,6.16258]
[1764876025028,0.0048744,3074.7,3074.6,4.42233445]
[1764876025327,3.2078,3075.3,3074.9,0.16255]
[1764876025628,3.07723931,3075.3,3075.2,0.16254]
[1764876025823,3.2078,3075.9,3075.2,0.16254]
[1764876026021,3.2078,3075.5,3075.2,4.34983955]
[1764876026221,0.00294315,3075.5,3075.0,3.8616]
[1764876026626,3.21074315,3075.5,3075.1,4.18729955]
[1764876026824,3.21074315,3075.5,3073.5,14.62689416]
[1764876026825,3.21074315,3075.5,3074.3,0.16258]
[1764876027031,3.2078,3074.7,3073.5,7.21769416]
[1764876027329,3.2078,3074.7,3074.4,4.26032585]
[1764876027516,3.2078,3074.7,3073.9,0.1626]
[1764876027718,3.2078,3074.3,3073.9,0.1626]
[1764876028519,0.00294315,3075.5,3075.2,0.16254]
[1764876028724,0.00294315,3075.5,3075.3,3.2078]
[1764876028919,0.00294315,3075.5,3075.4,0.16253]
[1764876029426,3.21074315,3075.5,3074.5,0.16258]
[1764876029627,3.21074315,3075.5,3075.4,0.16253]
[1764876030018,3.21074315,3075.5,3074.6,4.43994395]
[1764876030225,3.2078,3075.1,3074.6,0.16257]
[1764876030427,3.2078,3075.1,3074.8,0.16256]
[1764876030625,3.2078,3075.1,3074.7,4.27737395]
[1764876030824,3.2078,3075.1,3075.0,0.16255]
[1764876031128,3.2078,3075.1,3072.5,3.2078]
[1764876031129,2.0163,3074.0,3072.5,3.2078]
[1764876031342,3.89494776,3074.5,3072.8,0.14831743]
[1764876031627,3.2078,3073.6,3073.1,0.16265]
[1764876031820,3.2078,3073.6,3073.4,0.16264]
[1764876032025,3.2078,3073.6,3073.5,0.14831743]
[1764876032227,3.2078,3073.6,3073.5,0.15122042]
[1764876032428,3.2078,3073.6,3073.2,0.0048744]
[1764876032622,3.2078,3073.6,3073.2,0.15319183]
[1764876032830,9.2078,3073.6,3072.2,3.2078]
[1764876033132,3.2078,3072.6,3072.3,4.27031753]
[1764876033329,3.2078,3072.6,3072.2,0.1627]
[1764876033533,3.21121278,3072.6,3072.5,0.14831743]
[1764876033731,3.21121278,3072.6,3072.5,0.31099743]
[1764876034035,0.00341278,3072.6,3072.5,10.4489833]
[1764876034433,3.2078,3073.1,3072.5,10.4489833]
[1764876034434,3.2078,3073.1,3073.0,0.16266]
[1764876034829,3.2078,3073.1,3073.0,4.37263068]
[1764876035024,3.2078,3073.1,3073.0,6.16266]
[1764876035227,3.2078,3073.6,3073.4,0.16264]
[1764876035421,3.21106254,3073.6,3073.5,0.16263]
[1764876036031,3.21106254,3073.6,3072.7,0.16267]
[1764876036332,3.2078,3072.9,3072.7,0.16267]
[1764876036727,3.2078,3072.9,3072.6,4.28730684]
[1764876036728,3.2078,3072.9,3072.8,0.16267]
[1764876036924,3.2078,3073.4,3072.8,4.44979019]
[1764876037127,3.2078,3072.9,3072.8,0.16267]
[1764876037528,3.2078,3072.9,3072.1,0.1627]
[1764876037728,3.2078,3072.7,3072.6,0.31099743]
[1764876037934,3.2078,3072.7,3072.6,4.57841129]
[1764876038132,3.2078,3073.0,3072.9,0.16266]
[1764876038530,3.2078,3073.0,3072.9,0.31097743]
[1764876038733,3.2078,3073.0,3072.0,4.2092]
[1764876038923,3.2078,3072.7,3072.6,0.14831743]
[1764876039129,3.2078,3072.7,3072.6,0.31099743]
[1764876039728,3.2078,3073.2,3072.6,10.28164695]
[1764876039927,3.2078,3073.2,3073.1,0.16265]
[1764876040437,3.2078,3073.2,3072.6,0.31099743]
[1764876040626,3.2078,3072.8,3072.6,0.31099743]
[1764876040825,3.07635109,3072.8,3072.7,0.16267]
[1764876041029,0.00326254,3073.6,3073.5,0.16263]
[1764876041334,0.00326254,3073.6,3073.5,4.46535432]
[1764876041537,3.2078,3074.0,3073.5,4.30272432]
[1764876041738,3.2078,3074.0,3073.9,0.16261]
[1764876042032,3.2078,3074.0,3073.9,4.32074443]
[1764876042338,3.2078,3074.0,3073.0,7.417]
[1764876042535,3.2078,3073.5,3073.2,0.0048744]
[1764876043034,3.2078,3072.8,3070.8,0.28629458]
[1764876043231,3.2078,3072.3,3071.7,3.2078]
[1764876043435,40.8,3073.3,3072.0,7.471]
[1764876043436,3.2078,3072.7,3072.0,7.471]
[1764876043632,3.2078,3072.7,3072.0,4.2632]
[1764876043931,3.21268242,3072.7,3072.6,0.16268]
[1764876044134,0.00180199,3072.7,3072.6,0.16268]
[1764876044435,0.00180199,3072.7,3072.6,10.31711337]
[1764876044733,3.20960199,3072.7,3072.6,0.16268]
[1764876044938,0.00180199,3072.7,3072.6,0.16268]
[1764876046432,0.00180199,3072.7,3072.6,6.16268]
[1764876046628,3.2078,3073.2,3073.1,0.16265]
[1764876046842,3.2078,3073.7,3073.1,6.0]
[1764876047139,3.2078,3073.7,3073.6,0.16262]
[1764876047538,0.00252924,3074.0,3073.9,0.16261]
[1764876047936,0.00252924,3074.0,3073.9,4.34835846]
[1764876049642,0.00252924,3074.0,3073.3,0.16264]
[1764876049842,3.2078,3073.4,3073.3,0.16264]
[1764876050839,3.2078,3073.4,3073.3,4.38081216]
[1764876051143,3.2078,3073.4,3073.3,0.16264]
[1764876051739,3.2078,3073.4,3073.3,4.36598183]
[1764876052652,3.2078,3073.4,3072.5,3.2078]
[1764876052842,3.2078,3072.9,3072.5,3.2078]
[1764876053038,3.2078,3072.9,3072.6,4.26144069]
[1764876053842,3.2078,3072.7,3072.0,0.00292053]
[1764876054144,0.16266,3073.1,3072.0,0.00292053]
[1764876054145,3.2078,3072.5,3072.1,4.17587687]
[1764876054343,3.2078,3072.5,3072.4,0.16269]
[1764876055941,3.2078,3072.5,3072.4,4.44067318]
[1764876056347,3.2078,3072.5,3072.4,0.16269]
[1764876056540,3.2078,3072.5,3072.4,4.44067318]
[1764876057643,3.2078,3072.5,3072.1,0.00180199]
[1764876057845,3.2078,3072.5,3072.4,0.16269]
[1764876059347,3.2078,3072.5,3072.4,4.32739009]
[1764876060043,3.2078,3073.3,3073.2,0.16265]
[1764876060251,3.2078,3073.3,3072.4,7.90179294]
[1764876060546,1.06933379,3073.9,3072.7,0.16267]
[1764876060747,2.87058,3072.8,3072.7,0.16267]
[1764876060946,0.78815384,3073.8,3072.5,4.3269921]
[1764876060947,0.00252924,3074.0,3072.8,4.25745891]
[1764876061151,3.2078,3072.9,3072.4,0.16269]
[1764876061338,3.2078,3072.9,3072.1,0.00180199]
[1764876061339,3.2078,3072.5,3072.1,0.00180199]
[1764876061946,3.2078,3072.5,3072.3,0.16269]
[1764876062345,3.2078,3072.5,3072.1,0.00180199]
[1764876062651,3.2078,3072.5,3072.1,0.16450199]
[1764876062847,3.2078,3072.5,3072.4,0.16269]
[1764876063244,3.2078,3072.5,3072.4,4.40853409]
[1764876063444,3.2078,3072.5,3072.4,0.16269]
[1764876063744,3.2078,3072.5,3072.1,0.00180199]
[1764876063944,3.2078,3072.5,3071.2,0.16275]
[1764876064247,3.2078,3071.3,3071.2,0.16275]
[1764876064638,3.2078,3071.3,3070.5,0.16279]
[1764876064951,3.2078,3070.6,3070.5,0.16576988]
[1764876065450,3.21268242,3071.2,3071.1,0.16276]
[1764876065747,3.21268242,3071.2,3070.2,0.00488242]
[1764876065952,3.2078,3070.5,3070.4,0.16279]
[1764876066145,3.2078,3070.5,3070.2,0.00488242]
[1764876066146,0.00488242,3071.2,3071.0,0.16276]
[1764876066347,0.00488242,3071.2,3071.1,0.16276]
[1764876066945,3.9813,3072.6,3071.7,0.16273]
[1764876066946,3.2078,3071.8,3071.7,0.16273]
[1764876067151,3.2078,3071.8,3071.1,4.31472226]
[1764876067342,3.2078,3071.3,3071.1,0.00241619]
[1764876068045,3.2078,3071.3,3071.1,0.16517619]
[1764876068046,3.21190779,3071.3,3071.1,0.16517619]
[1764876068354,3.21190779,3071.3,3071.2,0.16275]
[1764876068555,3.21190779,3071.3,3071.2,4.38898957]
[1764876068556,0.00410779,3071.3,3071.2,4.38898957]
[1764876068743,0.00410779,3071.3,3071.2,0.16275]
[1764876068947,6.00410779,3071.3,3070.3,3.3706]
[1764876069255,3.2078,3070.5,3068.9,3.2078]
[1764876069448,3.2078,3069.5,3068.7,3.27258483]
[1764876069753,0.00410779,3071.3,3069.4,3.27258483]
[1764876069949,0.00410779,3071.3,3070.2,3.27258483]
[1764876069950,3.2078,3070.9,3070.2,3.27258483]
[1764876070154,0.00488242,3070.7,3070.0,0.00488242]
[1764876070349,3.21268242,3070.7,3070.0,3.27258483]
[1764876070549,0.00488242,3070.7,3069.6,3.2078]
[1764876070750,3.2078,3070.2,3069.4,0.00228284]
[1764876070951,3.2078,3070.1,3069.6,3.2078]
[1764876071151,3.2078,3070.1,3069.4,0.16513284]
[1764876071453,3.2078,3070.1,3069.7,4.30996038]
[1764876071649,3.2078,3070.6,3070.0,3.2078]
[1764876071860,3.2078,3070.6,3069.8,0.16282]
[1764876072054,3.2078,3070.6,3069.6,3.2078]
[1764876072260,3.2078,3069.2,3067.5,0.28161656]
[1764876072550,3.2078,3068.6,3068.1,4.26105259]
[1764876072750,3.2078,3068.6,3068.5,3.27258483]
[1764876072953,3.2078,3069.3,3068.9,0.16287]
[1764876073153,3.21102435,3069.3,3068.9,0.1642711]
[1764876073358,0.00322435,3069.3,3069.2,3.2078]
[1764876074155,0.00322435,3069.3,3069.2,3.37066]
[1764876074361,0.00322435,3069.3,3069.2,7.69088217]
[1764876074547,3.21102435,3069.3,3069.2,3.37066]
[1764876074857,3.21102435,3069.3,3068.9,0.00628352]
[1764876075548,3.21102435,3069.3,3069.0,3.2078]
[1764876075747,0.00322435,3069.3,3069.1,3.27258483]
[1764876075956,3.2078,3070.1,3069.2,3.2078]
[1764876076257,3.2078,3070.6,3069.6,3.27258483]
[1764876076457,3.2078,3070.6,3070.1,3.27258483]
[1764876076851,3.2078,3070.6,3070.4,0.16279]
[1764876077054,3.2119267,3070.6,3069.8,3.27258483]
[1764876077261,3.2078,3070.2,3069.8,3.27258483]
[1764876077557,0.0041267,3070.6,3070.1,0.16281]
[1764876077764,3.2078,3070.3,3069.3,0.16285]
[1764876078059,3.2078,3069.4,3067.5,3.27258483]
[1764876078254,3.2078,3068.1,3067.5,0.16295]
[1764876078554,3.2078,3068.1,3067.4,3.27258483]
[1764876078760,4.1464,3069.0,3067.0,4.211]
[1764876078761,3.2078,3068.6,3068.1,0.16292]
[1764876078961,3.2078,3068.6,3068.5,3.27258483]
[1764876079157,0.00488242,3068.9,3068.8,0.16288]
[1764876079360,3.07351863,3069.2,3068.8,3.27258483]
[1764876079556,3.2078,3070.2,3069.1,6.48038483]
[1764876079858,3.2078,3070.1,3069.8,3.27258483]
[1764876080164,2.184,3072.4,3069.8,3.27258483]
[1764876080165,3.2078,3071.5,3070.0,7.4188]
[1764876080358,3.2078,3071.5,3070.8,3.2078]
[1764876080659,0.00488242,3071.1,3070.9,7.46343624]
[1764876080859,3.2078,3072.3,3071.4,3.27258483]
[1764876081069,3.2078,3072.3,3072.2,3.27258483]
[1764876081360,3.2078,3072.8,3072.2,10.68672928]
[1764876081566,4.1464,3074.0,3072.3,3.27258483]
[1764876081753,3.2078,3074.7,3073.8,3.27258483]
[1764876082159,0.00488242,3074.6,3073.8,3.27258483]
[1764876082361,3.2078,3073.9,3073.2,3.2078]
[1764876082756,4.1464,3073.4,3072.8,0.00488242]
[1764876082958,4.1464,3073.4,3071.6,0.16273]
[1764876082959,3.2078,3073.1,3072.5,3.2078]
[1764876083161,3.2078,3073.5,3072.8,3.2078]
[1764876083555,3.2078,3073.1,3072.6,3.2078]
[1764876083761,3.2078,3073.1,3072.2,0.00414369]
[1764876083961,0.00488242,3073.0,3072.9,3.27258483]
[1764876084163,0.00488242,3073.0,3072.5,3.37048]
[1764876084370,3.2078,3072.9,3072.3,0.00488242]
[1764876084565,3.2078,3072.9,3071.3,3.27258483]
[1764876084767,3.2078,3071.6,3070.9,3.2078]
[1764876085065,3.2078,3072.8,3072.0,0.16271]
[1764876085269,3.2078,3072.8,3072.4,3.27258483]
[1764876085670,3.21148857,3072.8,3072.4,0.00279572]
[1764876086061,3.21148857,3072.8,3072.3,0.00488242]
[1764876086262,4.1436,3072.3,3070.9,6.48038483]
[1764876086571,3.2078,3072.2,3071.4,6.48038483]
[1764876086771,3.2078,3072.2,3071.4,3.2078]
[1764876086971,3.2078,3071.6,3070.6,3.2078]
[1764876087168,3.2078,3071.1,3070.6,3.21140594]
[1764876087369,3.2078,3070.7,3070.1,4.28962707]
[1764876087674,3.2078,3070.2,3069.6,3.2078]
[1764876088077,3.2078,3070.2,3069.6,6.4156]
[1764876088474,3.21040009,3070.2,3069.6,6.4186116]
[1764876088675,3.21040009,3070.2,3069.6,3.2108116]
[1764876088976,3.21040009,3070.2,3069.6,6.4186116]
[1764876089277,0.00260009,3070.2,3070.1,3.2078]
[1764876089472,0.00260009,3070.2,3070.0,3.43539483]
[1764876089769,0.00260009,3070.2,3069.6,0.0030116]
[1764876089770,3.2078,3070.1,3069.6,0.0030116]
[1764876089975,3.2078,3070.1,3069.0,3.2078]
[1764876089976,3.2078,3069.7,3069.0,3.2078]
[1764876090183,0.00260009,3070.2,3069.7,4.24130398]
[1764876090381,0.00260009,3070.2,3069.6,6.57844]
[1764876090686,0.00260009,3070.2,3069.9,3.2078]
[1764876090982,0.00260009,3070.2,3069.9,3.37062]
[1764876091186,0.00260009,3070.2,3070.0,6.48038483]
[1764876091381,0.00260009,3070.2,3070.0,10.62123282]
[1764876091582,3.2078,3070.8,3070.1,0.16281]
[1764876091785,3.2078,3070.8,3070.5,3.27258483]
[1764876091985,3.2078,3070.8,3070.0,0.00260009]
[1764876092186,3.2078,3071.0,3070.3,3.27258483]
[1764876092386,3.2078,3071.0,3070.8,3.27258483]
[1764876092683,0.00400728,3071.0,3070.9,0.16277]
[1764876092884,3.2078,3071.9,3071.0,4.211]
[1764876093078,3.2078,3072.0,3071.5,3.2078]
[1764876093279,3.2078,3072.0,3071.4,3.2078]
[1764876093488,3.2078,3072.0,3071.5,3.2078]
[1764876093984,3.21016921,3072.0,3071.6,4.25524885]
[1764876094181,3.21016921,3072.0,3070.7,3.2078]
[1764876094182,3.21016921,3072.0,3071.0,3.27258483]
[1764876094385,3.2078,3071.1,3070.5,6.48038483]
[1764876094580,3.2078,3071.1,3070.4,3.27258483]
[1764876094778,3.2078,3071.1,3070.8,3.2078]
[1764876095785,3.2078,3071.1,3070.8,3.37057]
[1764876096177,3.2078,3071.9,3071.0,6.64314483]
[1764876096386,3.2078,3071.9,3071.2,3.2078]
[1764876096983,3.2078,3071.9,3071.2,6.4156]
[1764876097287,0.00236921,3072.0,3071.7,0.16272]
[1764876097492,3.2078,3071.8,3071.0,6.48038483]
[1764876097784,3.2078,3071.8,3069.8,7.912]
[1764876097785,0.00236921,3072.0,3071.5,6.48038483]
[1764876098180,3.2078,3071.7,3071.2,3.2078]
[1764876098485,3.2078,3071.3,3070.7,0.16278]
[1764876098892,0.00236921,3072.0,3070.1,0.16281]
[1764876098893,3.2078,3070.8,3070.1,0.16281]
[1764876099181,3.2078,3071.2,3070.4,3.2078]
[1764876099386,3.2078,3071.2,3070.6,0.16766242]
[1764876099583,3.2078,3071.2,3070.7,3.37058]
[1764876099784,3.2078,3071.6,3071.2,0.16275]
[1764876099987,3.2078,3071.6,3070.9,3.27258483]
[1764876100188,0.00236921,3072.0,3070.6,0.00488242]
[1764876100189,3.2078,3071.2,3070.6,0.00488242]
[1764876100394,3.2078,3071.2,3070.7,0.16278]
[1764876100689,3.2078,3071.6,3071.0,3.43534483]
[1764876100984,3.2078,3071.2,3071.0,3.27258483]
[1764876101581,3.2078,3071.6,3071.0,6.48038483]
[1764876101783,3.2078,3071.6,3071.2,0.16275]
[1764876101978,3.2078,3071.6,3071.5,3.27258483]
[1764876102384,3.21016921,3072.0,3071.5,6.64311483]
[1764876102687,3.21016921,3072.0,3071.8,0.16272]
[1764876103091,3.21016921,3072.0,3071.9,0.16271]
[1764876103487,3.21016921,3072.0,3071.9,3.37051]
[1764876103982,0.00236921,3072.0,3071.9,3.37051]
[1764876104188,0.00236921,3072.0,3071.9,6.57831]
[1764876104981,3.2078,3072.5,3072.2,0.1627]
[1764876105290,3.2078,3072.5,3072.4,3.27258483]
[1764876105888,3.2078,3072.9,3072.4,3.27258483]
[1764876106184,3.21183977,3072.9,3072.4,3.27563022]
[1764876106385,3.2078,3072.5,3071.2,3.37055]
[1764876106586,3.2078,3072.1,3071.9,3.27258483]
[1764876106786,3.2078,3072.5,3071.9,3.27258483]
[1764876106982,3.2078,3072.5,3072.0,3.2078]
[1764876107186,3.21183977,3072.9,3072.3,0.16269]
[1764876107393,3.21183977,3072.9,3072.3,0.17119606]
[1764876107693,3.21183977,3072.9,3072.5,3.2078]
[1764876108086,3.21183977,3072.9,3072.6,3.2078]
[1764876108281,3.21183977,3072.9,3072.3,0.00850606]
[1764876108482,3.21183977,3072.9,3072.3,3.21630606]
[1764876108695,3.2078,3072.5,3072.3,0.00850606]
[1764876109191,3.21183977,3072.9,3072.6,0.16267]
[1764876109391,3.21183977,3072.9,3072.7,3.2078]
[1764876109990,3.21183977,3072.9,3072.4,3.27258483]
[1764876110189,3.21183977,3072.9,3072.6,3.2078]
[1764876111198,9.21183977,3072.9,3072.3,0.00850606]
[1764876111389,3.2078,3072.4,3071.7,3.37053]
[1764876111786,3.2078,3072.4,3071.8,3.2078]
[1764876112187,3.2078,3071.9,3070.9,3.2078]
[1764876112387,3.2078,3071.3,3071.1,0.00488242]
[1764876112983,3.2078,3071.3,3071.2,3.2078]
[1764876113786,9.2078,3071.3,3071.1,0.00488242]
[1764876113992,3.2078,3071.3,3071.1,0.00488242]
[1764876115104,9.2078,3071.3,3069.9,3.27258483]
[1764876115399,3.2078,3070.6,3070.0,3.2078]
[1764876115694,3.2078,3070.2,3069.2,3.2078]
[1764876115885,0.00488242,3070.0,3069.2,6.48038483]
[1764876116086,0.00731223,3070.0,3069.7,3.43541483]
[1764876117396,0.00731223,3070.0,3069.6,3.2078]
[1764876117700,0.00731223,3070.0,3069.9,3.43540483]
[1764876118586,3.2078,3071.1,3070.5,0.16279]
[1764876118794,3.2078,3070.6,3068.9,2.87701206]
[1764876118999,3.2078,3070.0,3069.5,3.27258483]
[1764876119302,3.2078,3069.6,3069.0,3.27258483]
[1764876119594,3.21618915,3069.6,3069.0,3.27975233]
[1764876119799,3.2078,3069.2,3069.0,0.0071675]
[1764876119996,3.2078,3069.2,3067.2,7.56001206]
[1764876119997,0.1629,3068.5,3067.2,3.27258483]
[1764876120295,3.2078,3067.7,3066.7,6.48038483]
[1764876120493,3.2078,3067.7,3066.1,0.16302]
[1764876120494,3.2078,3066.8,3066.2,3.92436516]
[1764876120697,3.2078,3066.8,3066.2,7.13216516]
[1764876120894,0.00244195,3066.8,3066.7,3.92436516]
[1764876121093,3.2078,3067.9,3066.9,0.16298]
[1764876121399,3.2078,3067.6,3066.9,0.16298]
[1764876121694,3.2078,3067.7,3067.1,3.2078]
[1764876121895,4.546,3068.1,3067.1,3.2078]
[1764876122096,4.546,3068.1,3066.3,4.683]
[1764876122097,0.00489045,3067.9,3067.8,3.92436516]
[1764876122703,40.8,3070.2,3069.1,0.16286]
[1764876122996,3.2078,3069.8,3069.1,3.92436516]
[1764876123296,3.2078,3069.6,3068.4,0.1629]
[1764876123499,0.00489045,3069.3,3068.7,0.00489045]
[1764876123701,3.2078,3069.2,3068.7,0.00489045]
[1764876123897,0.00489045,3069.3,3068.9,3.2078]
[1764876124093,3.2078,3070.1,3069.7,0.16283]
[1764876124395,3.2078,3070.7,3069.7,7.13216516]
[1764876124596,3.2078,3070.7,3070.3,3.92436516]
[1764876124795,3.2078,3071.3,3071.2,0.16275]
[1764876124991,0.00302082,3071.3,3071.2,7.29873145]
[1764876125198,3.2078,3073.9,3072.0,0.16271]
[1764876125389,3.2078,3073.9,3072.8,3.2078]
[1764876125589,0.00489045,3073.4,3072.8,3.2078]
[1764876125795,0.00489045,3073.4,3073.3,3.2078]
[1764876125997,4.3402,3075.0,3072.9,8.22031788]
[1764876125998,3.2078,3073.9,3072.9,8.22031788]
[1764876126199,0.00360658,3073.4,3073.3,4.08700516]
[1764876126397,3.2078,3075.1,3074.3,3.92436516]
[1764876126590,3.2078,3075.1,3074.8,3.92436516]
[1764876126895,3.2078,3075.6,3074.8,7.13216516]
[1764876127294,3.21080548,3075.6,3074.8,7.13533848]
[1764876127498,3.21569593,3075.6,3074.8,0.00317332]
[1764876127699,3.2078,3075.1,3074.4,0.00488226]
[1764876127902,3.21268226,3075.1,3074.4,0.00488226]
[1764876128395,3.21268226,3075.1,3075.0,3.2078]
[1764876128396,0.00488226,3075.1,3075.0,3.2078]
[1764876128604,0.00977271,3075.1,3074.6,3.2078]
[1764876128901,0.00977271,3075.1,3074.6,3.21065451]
[1764876129100,0.00977271,3075.1,3074.6,0.00285451]
[1764876129295,3.2078,3074.8,3074.6,0.00285451]
[1764876129495,0.00977271,3075.1,3074.6,0.00285451]
[1764876129702,0.00488226,3075.1,3074.8,3.2078]
[1764876130304,0.00488226,3075.1,3074.9,3.92436516]
[1764876130596,0.00488226,3075.1,3074.8,3.2078]
[1764876131005,0.00977271,3075.1,3074.9,4.31990294]
[1764876131199,0.00488226,3075.1,3074.8,3.2078]
[1764876131595,3.2078,3076.9,3075.0,3.92436516]
[1764876131800,3.2078,3076.9,3076.4,3.2078]
[1764876132092,3.2078,3076.5,3075.4,3.2078]
[1764876132399,3.2078,3075.9,3075.4,3.2078]
[1764876132602,0.00422301,3075.9,3075.4,3.2078]
[1764876132796,0.00911346,3075.9,3075.4,3.2078]
[1764876133201,3.21691346,3075.9,3075.4,3.2078]
[1764876133398,0.00911346,3075.9,3075.4,3.2078]
[1764876133804,3.2078,3075.5,3075.3,0.00488226]
[1764876134005,3.2078,3075.5,3074.6,0.00285451]
[1764876134502,3.2078,3074.8,3073.9,3.2078]
[1764876134702,3.2078,3074.6,3073.5,3.2078]
[1764876134903,0.00488226,3074.4,3073.9,3.2078]
[1764876135403,0.00489045,3074.0,3073.9,3.21086388]
[1764876136103,3.2078,3075.2,3073.9,3.21086388]
[1764876136304,0.00489045,3074.7,3074.0,3.2078]
[1764876136603,0.00489045,3074.7,3073.9,0.00306388]
[1764876136604,0.00489045,3074.7,3074.4,3.2078]
[1764876136808,0.00489045,3074.6,3074.4,3.2078]
[1764876137401,0.00322259,3074.8,3074.4,3.2078]
[1764876138105,3.2078,3075.8,3074.7,4.08693516]
[1764876138407,0.00489045,3075.7,3075.1,3.2078]
[1764876138707,0.00489045,3075.7,3074.2,3.92436516]
[1764876138708,3.2078,3075.4,3074.4,3.2078]
[1764876138907,3.2078,3075.4,3074.2,3.92436516]
[1764876138908,3.2078,3075.4,3074.8,3.2078]
[1764876139211,3.2078,3075.8,3074.8,3.2078]
[1764876139506,0.00489045,3075.4,3074.8,3.2078]
[1764876140112,3.21269045,3075.4,3074.8,3.2078]
[1764876140716,0.00422301,3075.9,3075.3,7.13216516]
[1764876141023,3.2078,3077.8,3076.5,0.16247]
[1764876141306,3.2078,3078.0,3077.4,3.92436516]
[1764876141698,40.8,3077.9,3077.4,3.92436516]
[1764876141898,40.80296277,3077.9,3077.5,3.2078]
[1764876142104,0.00296277,3077.9,3077.4,0.00322499]
[1764876142301,3.2078,3077.6,3077.4,0.00322499]
[1764876142704,0.00296277,3077.9,3077.4,0.00322499]
[1764876142900,3.2078,3077.7,3077.4,0.00322499]
[1764876143104,0.00296277,3077.9,3077.5,7.13216516]
[1764876143308,3.2078,3079.1,3078.2,0.16238]
[1764876143610,3.2078,3079.1,3078.4,3.2078]
[1764876143913,3.2078,3079.7,3079.0,3.2078]
[1764876144411,0.0031035,3079.7,3079.2,3.92436516]
[1764876144609,0.0031035,3079.7,3079.2,7.13216516]